bitfinex-derivatives/quotes_BNBF0:USTF0_20250406
["timestamp","ask_amount","ask_price","bid_price","bid_amount"]
[1743934976151,0.5793176,588.67,587.9,0.28606225]
[1743934976355,0.5793176,588.66,587.9,0.28606225]
[1743934976556,0.5793176,588.65,587.9,0.28606225]
[1743934976754,0.5793176,588.64,587.9,0.28606225]
[1743934976958,0.5793176,588.63,587.9,0.28606225]
[1743934977156,0.5793176,588.62,587.9,0.28606225]
[1743934977356,0.5793176,588.61,587.9,0.28606225]
[1743934977559,0.5793176,588.6,587.9,1.55525347]
[1743934977759,0.5793176,588.59,587.91,0.28606225]
[1743934978062,0.5793176,588.58,587.91,0.28606225]
[1743934978260,0.5793176,588.57,587.91,0.28606225]
[1743934978559,0.5793176,588.56,587.91,0.28606225]
[1743934978761,0.5793176,588.55,587.91,0.28606225]
[1743934978955,0.5793176,588.54,587.91,0.28606225]
[1743934979159,0.5793176,588.53,587.91,0.28606225]
[1743934979357,0.5793176,588.52,587.91,0.28606225]
[1743934979557,0.5793176,588.51,587.92,0.28610174]
[1743934979755,0.5793176,588.5,587.93,0.28610174]
[1743934979960,0.5793176,588.49,587.94,0.28610174]
[1743934980158,0.59,588.69,587.91,0.28610174]
[1743934980159,0.5793176,588.48,587.91,0.28610174]
[1743934980359,0.5793176,588.47,587.92,0.28610174]
[1743934980564,0.5793176,588.46,587.93,0.28610174]
[1743934980766,0.5793176,588.45,587.9,0.28610174]
[1743934980967,0.59,588.69,587.89,0.34019969]
[1743934981165,0.29573353,588.62,587.91,0.28609687]
[1743934981366,0.57971463,588.61,587.92,0.28609687]
[1743934981560,0.57971463,588.6,587.9,0.28609687]
[1743934981767,0.57971463,588.59,587.89,0.34019969]
[1743934981962,0.57971463,588.58,587.9,0.28609555]
[1743934982166,0.57971463,588.57,587.9,0.28609555]
[1743934982365,0.57971463,588.56,587.9,0.28609555]
[1743934982662,0.57971463,588.55,587.9,0.28609555]
[1743934982967,0.57971463,588.54,587.9,0.28609555]
[1743934983168,0.57971463,588.53,587.9,0.28609555]
[1743934983367,0.57971463,588.52,587.9,0.28609555]
[1743934983567,0.57971463,588.51,587.9,0.28609555]
[1743934983759,0.57971463,588.5,587.9,0.28609555]
[1743934983962,0.57971463,588.49,587.89,0.34019969]
[1743934984168,0.57971463,588.48,587.89,0.34019969]
[1743934984364,0.57971463,588.47,587.89,0.34019969]
[1743934984567,0.57971463,588.46,587.89,0.34019969]
[1743934984869,0.29573353,588.62,587.89,0.34019969]
[1743934985070,0.5795225,588.61,587.89,0.34019969]
[1743934985270,0.5795225,588.6,587.89,0.34019969]
[1743934985469,0.5795225,588.59,587.89,0.34019969]
[1743934985669,0.5795225,588.58,587.89,0.34019969]
[1743934985870,0.5795225,588.57,587.89,0.34019969]
[1743934986066,0.5795225,588.56,587.89,0.34019969]
[1743934986268,0.5795225,588.55,587.89,0.34019969]
[1743934986571,0.5795225,588.54,587.89,0.34019969]
[1743934986769,0.5795225,588.53,587.89,0.34019969]
[1743934986974,0.5795225,588.52,587.89,0.34019969]
[1743934987173,0.5795225,588.51,587.89,0.34019969]
[1743934987370,0.5795225,588.5,587.89,0.34019969]
[1743934987589,0.57919096,588.49,587.89,0.34019969]
[1743934987775,0.57919096,588.61,587.89,0.34019969]
[1743934987975,0.57919096,588.6,587.89,0.34019969]
[1743934988177,0.57919096,588.59,587.89,0.34019969]
[1743934988377,0.57919096,588.58,587.89,0.34019969]
[1743934988574,0.57919096,588.57,587.89,0.34019969]
[1743934988777,0.57919096,588.56,587.89,0.34019969]
[1743934988977,0.57919096,588.55,587.89,0.34019969]
[1743934989178,0.57919096,588.54,587.89,0.34019969]
[1743934989380,0.57919096,588.53,587.89,0.34019969]
[1743934989677,0.57919096,588.52,587.9,0.28611165]
[1743934989977,0.57919096,588.51,587.9,0.28611165]
[1743934990282,0.57919096,588.5,587.9,0.28611165]
[1743934990476,0.57919096,588.49,587.9,0.28611165]
[1743934990678,0.57919096,588.59,587.9,0.28611165]
[1743934990881,0.57919096,588.58,587.89,0.34019969]
[1743934991087,0.57919096,588.57,587.9,0.28612194]
[1743934991285,0.57919096,588.56,587.9,0.28612194]
[1743934991486,0.57919096,588.55,587.9,0.28612194]
[1743934991785,0.57919096,588.54,587.9,0.28612194]
[1743934991979,0.57919096,588.53,587.9,0.28612194]
[1743934992187,0.57919096,588.52,587.9,0.28612194]
[1743934992484,0.57919096,588.51,587.9,0.28612194]
[1743934992685,0.57919096,588.5,587.89,0.34019969]
[1743934992881,0.57919096,588.49,587.9,0.28612188]
[1743934993082,0.57919096,588.48,587.9,0.28612188]
[1743934993280,0.57919096,588.47,587.9,0.28612188]
[1743934993483,0.57919096,588.46,587.9,0.28612188]
[1743934993784,0.616,588.6,587.9,0.28612188]
[1743934993984,0.57883868,588.59,587.9,0.28612188]
[1743934994184,0.57883868,588.58,587.9,0.28612188]
[1743934994382,0.57883868,588.57,587.91,0.28612155]
[1743934994688,0.57883868,588.56,587.92,0.28612155]
[1743934994887,0.57883868,588.55,587.9,0.28612155]
[1743934995085,0.57883868,588.54,587.91,0.28612155]
[1743934995286,0.57883868,588.53,587.9,0.28612155]
[1743934995582,0.57883868,588.52,587.91,0.28612155]
[1743934995782,0.57883868,588.51,587.9,0.28612155]
[1743934996086,0.57883868,588.5,587.91,0.28612155]
[1743934996382,0.57883868,588.49,587.92,0.28612155]
[1743934996585,0.616,588.6,587.9,0.28612155]
[1743934996886,0.57869212,588.59,587.9,0.28612155]
[1743934997086,0.616,588.6,587.9,0.28612155]
[1743934997087,0.57869212,588.58,587.9,0.28612155]
[1743934997286,0.57869212,588.57,587.9,0.28612155]
[1743934997486,0.57869212,588.56,587.9,0.28612155]
[1743934997687,0.57869212,588.55,587.9,0.28612155]
[1743934997886,0.57869212,588.54,587.9,0.28612155]
[1743934998083,0.57869212,588.53,587.9,0.28612155]
[1743934998285,0.57869212,588.52,587.9,0.28612155]
[1743934998492,0.57869212,588.51,587.9,0.28612155]
[1743934998688,0.57869212,588.5,587.9,0.28612155]
[1743934998988,0.57869212,588.49,587.9,0.28612155]
[1743934999191,0.57869212,588.59,587.9,0.28612155]
[1743934999491,0.57869212,588.58,587.91,0.2861094]
[1743934999788,0.57869212,588.57,587.9,0.2861094]
[1743934999991,0.57869212,588.56,587.9,0.2861094]
[1743935000283,0.57869212,588.55,587.9,0.2861094]
[1743935000489,0.57869212,588.54,587.9,0.2861094]
[1743935000695,0.57869212,588.57,587.9,0.2861094]
[1743935000989,0.57869212,588.56,587.89,0.34019969]
[1743935001191,0.57869212,588.55,587.91,0.28608075]
[1743935001383,0.57869212,588.57,587.92,0.28608075]
[1743935001583,0.57869212,588.56,587.9,0.28608075]
[1743935001784,0.57869212,588.55,587.91,0.28608075]
[1743935002091,0.57869212,588.57,587.9,0.28608075]
[1743935002288,0.57869212,588.56,587.91,0.28608075]
[1743935002489,0.57869212,588.57,587.9,0.28608075]
[1743935002789,0.57869212,588.56,587.91,0.28608075]
[1743935003084,0.57869212,588.55,587.92,0.28608075]
[1743935003283,0.57869212,588.57,587.9,0.28608075]
[1743935003487,0.57869212,588.56,587.9,0.28608075]
[1743935003689,0.57869212,588.55,587.9,0.28608075]
[1743935003887,0.57869212,588.57,587.9,0.28608075]
[1743935004186,0.57869212,588.56,587.9,0.28608075]
[1743935004490,0.57869212,588.55,587.91,0.28607568]
[1743935004690,0.57869212,588.57,587.9,0.28607568]
[1743935004893,0.57869212,588.56,587.91,0.28607568]
[1743935005087,0.57869212,588.55,587.9,0.28607568]
[1743935005291,0.57869212,588.57,587.9,0.28607568]
[1743935005490,0.57869212,588.56,587.9,0.28607568]
[1743935005686,0.57869212,588.55,587.9,0.28607568]
[1743935005891,0.57869212,588.57,587.9,0.28607568]
[1743935006087,0.57869212,588.56,587.89,0.34019969]
[1743935006293,0.57869212,588.55,587.9,0.28607535]
[1743935006490,0.57869212,588.57,587.9,0.28607535]
[1743935006792,0.57869212,588.56,587.9,0.28607535]
[1743935007092,0.57869212,588.55,587.9,0.28607535]
[1743935007293,0.57869212,588.57,587.9,0.28607535]
[1743935007493,0.57869212,588.56,587.9,0.28607535]
[1743935007793,0.57869212,588.55,587.9,0.28607535]
[1743935007998,0.67,588.58,587.9,0.28607535]
[1743935008297,0.5787931,588.57,587.9,0.28607535]
[1743935008594,0.67,588.58,587.9,0.28607535]
[1743935008595,0.5787931,588.56,587.9,0.28607535]
[1743935008793,0.5787931,588.55,587.9,0.28607535]
[1743935009094,0.5787931,588.54,587.9,0.28607535]
[1743935009292,0.5787931,588.53,587.9,0.28607535]
[1743935009494,0.5787931,588.52,587.9,0.28607535]
[1743935009688,0.5787931,588.51,587.9,0.28607535]
[1743935009888,0.5787763,588.5,587.9,0.28607535]
[1743935010097,0.5787763,588.49,587.9,0.28607535]
[1743935010393,0.5787763,588.48,587.9,0.28607535]
[1743935010595,0.5787763,588.47,587.9,0.28607535]
[1743935010793,0.5787763,588.46,587.9,0.28607535]
[1743935010995,0.5787763,588.45,587.9,0.28607535]
[1743935011194,0.5787763,588.44,587.9,0.28607535]
[1743935011496,0.5787763,588.57,587.9,0.28607535]
[1743935011694,0.5787763,588.56,587.9,0.28607535]
[1743935011995,0.5787763,588.55,587.9,0.28607535]
[1743935012194,0.5787763,588.54,587.9,0.28607535]
[1743935012395,0.5787763,588.53,587.9,0.28607535]
[1743935012592,0.5787763,588.52,587.9,0.28607535]
[1743935012795,0.5787763,588.51,587.9,0.28607535]
[1743935012995,0.5787763,588.5,587.9,0.28607535]
[1743935013298,0.57880512,588.49,587.89,0.34019969]
[1743935013492,0.57880512,588.48,587.91,0.28612965]
[1743935013697,0.57880512,588.47,587.92,0.28612965]
[1743935013894,0.57880512,588.46,587.9,0.28612965]
[1743935014198,0.29576244,588.56,587.9,0.28612965]
[1743935014497,0.57880512,588.55,587.9,0.28612965]
[1743935014697,0.57880512,588.54,587.9,0.28612965]
[1743935014896,0.57875388,588.53,587.9,0.28612965]
[1743935015098,1.18075388,588.52,587.9,0.28612965]
[1743935015299,0.57875388,588.51,587.9,0.28612965]
[1743935016096,0.602,588.52,587.9,0.28612965]
[1743935017199,0.57875388,588.51,587.9,0.28612965]
[1743935017399,1.07475388,588.51,587.9,0.28612965]
[1743935018202,1.07475388,588.51,587.89,0.34019969]
[1743935018402,1.07475388,588.51,587.9,0.28612913]
[1743935018910,1.07475388,588.51,587.89,0.34019969]
[1743935019804,1.07475388,588.51,587.9,0.28612974]
[1743935020000,1.07475388,588.51,587.89,0.34019969]
[1743935020403,0.57888742,588.5,587.89,0.34019969]
[1743935020903,1.07488742,588.51,587.89,0.34019969]
[1743935021303,0.57888742,588.5,587.89,0.34019969]
[1743935021503,0.57888742,588.49,587.89,0.34019969]
[1743935021803,0.57888742,588.48,587.89,0.34019969]
[1743935022001,0.57888742,588.47,587.89,0.34019969]
[1743935022202,0.57888742,588.46,587.89,0.34019969]
[1743935022399,0.57888742,588.45,587.89,0.34019969]
[1743935022702,0.57888742,588.44,587.89,0.34019969]
[1743935022902,0.57888742,588.5,587.89,0.34019969]
[1743935023105,0.57888742,588.49,587.89,0.34019969]
[1743935023306,0.57888742,588.48,587.89,0.34019969]
[1743935023506,0.57888742,588.47,587.89,0.34019969]
[1743935023703,0.57888742,588.46,587.89,0.34019969]
[1743935023908,0.57888742,588.45,587.89,0.34019969]
[1743935024107,0.57888742,588.44,587.89,0.34019969]
[1743935024309,0.57888742,588.43,587.89,0.34019969]
[1743935024509,0.57888742,588.42,587.89,0.34019969]
[1743935024704,0.57888742,588.41,587.89,0.34019969]
[1743935024906,0.496,588.51,587.89,0.34019969]
[1743935025105,0.57884997,588.5,587.89,0.34019969]
[1743935025307,0.57884997,588.49,587.89,0.34019969]
[1743935025507,0.57884997,588.48,587.89,0.34019969]
[1743935025710,0.57884997,588.47,587.9,0.28613857]
[1743935025908,0.57884997,588.46,587.9,0.28613857]
[1743935026208,0.57884997,588.45,587.9,0.28613857]
[1743935026408,0.57884997,588.44,587.9,0.28613857]
[1743935026609,0.57884997,588.43,587.9,0.28613857]
[1743935026908,0.57884997,588.42,587.9,0.28613857]
[1743935027108,0.496,588.51,587.9,0.28613857]
[1743935027306,0.57894793,588.5,587.9,0.28613857]
[1743935027503,0.57894793,588.49,587.9,0.28613857]
[1743935027805,0.57894793,588.48,587.9,0.28613857]
[1743935028109,0.57894793,588.47,587.9,0.28613857]
[1743935028309,0.57894793,588.46,587.89,0.34019969]
[1743935028509,0.57894793,588.45,587.9,0.28614732]
[1743935028703,0.57894793,588.44,587.9,0.28614732]
[1743935028906,0.57894793,588.43,587.9,0.28614732]
[1743935029109,0.57894793,588.42,587.89,0.34019969]
[1743935029306,0.57894793,588.41,587.89,0.34019969]
[1743935029505,0.57894793,588.4,587.89,0.34019969]
[1743935029708,0.57894793,588.39,587.89,0.34019969]
[1743935029904,0.496,588.51,587.89,0.34019969]
[1743935030108,0.57907112,588.5,587.89,0.34019969]
[1743935030308,0.57907112,588.49,587.71,0.29577124]
[1743935030509,0.57907112,588.48,587.72,0.28616008]
[1743935030709,0.57907112,588.47,587.72,0.28616008]
[1743935030910,0.57907112,588.46,587.68,0.28616008]
[1743935031110,0.57907112,588.45,587.69,0.28616008]
[1743935031410,0.57907112,588.44,587.7,0.28616008]
[1743935031610,0.57907112,588.43,587.68,0.28616008]
[1743935031813,0.57907112,588.42,587.69,0.2861711]
[1743935032110,0.57907112,588.41,587.7,0.2861711]
[1743935032307,0.57907112,588.4,587.66,0.2861711]
[1743935032505,0.57907112,588.39,587.66,0.2861711]
[1743935032708,0.57907112,588.38,587.66,0.2861711]
[1743935033009,0.57907112,588.37,587.66,0.2861711]
[1743935033210,0.57907112,588.36,587.66,0.2861711]
[1743935033510,0.57907112,588.35,587.66,0.2861711]
[1743935033711,0.57907112,588.34,587.55,0.2861711]
[1743935033910,0.57907112,588.33,587.67,0.2861711]
[1743935034106,0.57907112,588.32,587.68,0.2861711]
[1743935034304,0.29581398,588.5,587.58,0.2861711]
[1743935034507,0.29581398,588.5,587.57,0.2958517]
[1743935034508,0.57891217,588.49,587.69,0.2861711]
[1743935034707,0.57891217,588.48,587.7,0.2861711]
[1743935034911,0.57891217,588.47,587.58,0.2861711]
[1743935035107,0.57891217,588.46,587.58,0.2861711]
[1743935035313,0.57891217,588.45,587.59,0.28619119]
[1743935035510,0.57891217,588.44,587.58,0.28619119]
[1743935035708,0.57891217,588.43,587.59,0.28619119]
[1743935035913,0.57891217,588.42,587.6,0.28619119]
[1743935036113,0.57891217,588.41,587.58,0.28619119]
[1743935036310,0.57891217,588.4,587.59,0.28619119]
[1743935036511,0.57891217,588.39,587.58,0.28619119]
[1743935036715,0.57891217,588.38,587.59,0.28619119]
[1743935036914,0.57891217,588.37,587.57,1.56504292]
[1743935037116,0.57891217,588.36,587.58,0.28619119]
[1743935037309,0.57891217,588.35,587.58,0.28619119]
[1743935037513,0.57891217,588.34,587.58,0.28619119]
[1743935037711,0.57891217,588.33,587.58,0.28619119]
[1743935037909,0.57891217,588.32,587.58,0.28619119]
[1743935038115,0.503,588.46,587.58,0.28619119]
[1743935038315,0.57888247,588.45,587.58,0.28619119]
[1743935038618,0.57888247,588.44,587.59,0.28619028]
[1743935038811,0.57888247,588.43,587.58,0.28619028]
[1743935039012,0.57888247,588.42,587.59,0.28619028]
[1743935039216,0.57888247,588.41,587.58,0.28619028]
[1743935039416,0.57888247,588.4,587.59,0.28619028]
[1743935039716,0.57888247,588.4,587.57,1.56504292]
[1743935039717,0.57888247,588.39,587.58,0.28619028]
[1743935039917,0.57888247,588.38,587.59,0.28619028]
[1743935040110,0.57888247,588.37,587.58,0.28619028]
[1743935040315,0.57888247,588.36,587.57,1.26919122]
[1743935040615,0.57888247,588.35,587.58,0.28619127]
[1743935040814,0.57888247,588.34,587.58,0.28619127]
[1743935041015,0.57888247,588.33,587.58,0.28619127]
[1743935041311,0.57888247,588.32,587.58,0.28619127]
[1743935041514,0.57888247,588.31,587.58,0.28619127]
[1743935041711,0.57888247,588.3,587.58,0.28619127]
[1743935041913,0.57888247,588.29,587.58,0.28619127]
[1743935042115,0.57888247,588.28,587.58,0.28619127]
[1743935042312,0.57888247,588.27,587.58,0.28619127]
[1743935042517,0.57888247,588.41,587.58,0.28619127]
[1743935042716,0.57888247,588.4,587.58,0.28619127]
[1743935042914,0.57888247,588.39,587.58,0.28619127]
[1743935043113,0.57888247,588.38,587.59,0.28619127]
[1743935043313,0.57888247,588.37,587.32,0.28619127]
[1743935043518,0.57888247,588.36,587.33,0.34052406]
[1743935043720,0.57888247,588.35,587.34,0.28619127]
[1743935043919,0.57888247,588.34,587.34,0.28619127]
[1743935044219,0.57888247,588.33,587.35,0.34051247]
[1743935044419,0.57888247,588.37,587.36,0.28619127]
[1743935044723,0.57827697,588.36,587.37,0.34050087]
[1743935044920,0.57827697,588.35,587.38,0.28619127]
[1743935045124,0.57827697,588.37,587.39,0.34048928]
[1743935045323,0.57818341,588.36,587.4,0.28619127]
[1743935045622,0.57818341,588.35,587.41,0.34047769]
[1743935045921,0.57818341,588.37,587.42,0.28619127]
[1743935046122,0.57818341,588.36,587.43,0.34046609]
[1743935046318,0.57818341,588.39,587.44,0.28619127]
[1743935046515,0.57818341,588.38,587.44,0.28619127]
[1743935046720,0.57818341,588.37,587.45,0.28623708]
[1743935047024,0.57818341,588.36,587.46,0.28623708]
[1743935047225,0.29589824,588.37,587.44,0.28623708]
[1743935047420,0.57818341,588.36,587.44,0.28623708]
[1743935048222,0.29589824,588.37,587.43,0.34046609]
[1743935048422,0.29589824,588.37,587.44,0.28624144]
[1743935048620,0.57818341,588.36,587.44,0.28624144]
[1743935048819,0.57818341,588.35,587.45,1.26919122]
[1743935049019,0.5778106,588.34,587.45,1.26919122]
[1743935049218,0.5778106,588.33,587.46,0.28624144]
[1743935049422,0.5778106,588.39,587.46,0.28624144]
[1743935049623,0.5778106,588.38,587.46,0.28624144]
[1743935049818,0.5778106,588.37,587.46,0.28624144]
[1743935050125,0.5778106,588.36,587.46,0.28624144]
[1743935050318,0.5778106,588.35,587.46,0.28624144]
[1743935050523,0.5778106,588.34,587.46,0.28624144]
[1743935050723,0.5778106,588.37,587.46,0.28624144]
[1743935050917,0.5778106,588.36,587.46,0.28624144]
[1743935051118,0.5778106,588.35,587.46,0.28624144]
[1743935051320,0.431,588.35,587.46,0.28624144]
[1743935051918,0.431,588.35,587.44,0.28624144]
[1743935052223,0.431,588.35,587.45,0.28624144]
[1743935052423,0.431,588.35,587.44,0.28624144]
[1743935053026,0.29591837,588.34,587.44,0.28624144]
[1743935053419,0.29591837,588.34,587.43,0.34046609]
[1743935053622,0.29591837,588.34,587.44,0.28627672]
[1743935057531,0.615,588.33,587.44,0.28627672]
[1743935061222,0.29592717,588.32,587.44,0.28627672]
[1743935062229,0.29592717,588.32,587.45,0.28626673]
[1743935062427,0.29592717,588.32,587.44,0.28626673]
[1743935062628,0.29592717,588.32,587.45,0.28626673]
[1743935062929,0.29592717,588.32,587.46,0.28626673]
[1743935063436,0.29592717,588.32,587.47,0.28626673]
[1743935063631,0.29592717,588.32,587.44,0.28626673]
[1743935063833,0.29592717,588.32,587.45,0.28626588]
[1743935064037,0.29592717,588.32,587.44,0.28626588]
[1743935064235,0.29592717,588.32,587.45,0.28626588]
[1743935064431,0.29592717,588.32,587.44,0.28626588]
[1743935064630,0.29592717,588.32,587.45,0.28626588]
[1743935064830,0.29592717,588.32,587.44,0.28626588]
[1743935067537,0.29592717,588.32,587.45,0.28623356]
[1743935067737,0.29592717,588.32,587.44,0.28623356]
[1743935068332,0.29592717,588.32,587.43,0.34046609]
[1743935068539,0.29592717,588.32,587.44,0.28622975]
[1743935068835,0.615,588.33,587.45,0.3404545]
[1743935069142,0.615,588.33,587.46,0.28622975]
[1743935069342,0.615,588.33,587.47,0.34044291]
[1743935069543,0.615,588.33,587.48,0.28622975]
[1743935069738,0.615,588.33,587.49,0.34043132]
[1743935069943,0.615,588.33,587.5,0.28622975]
[1743935070138,0.615,588.33,587.58,1.26919122]
[1743935070338,0.615,588.33,587.59,0.28622975]
[1743935071944,0.615,588.33,587.6,0.28621816]
[1743935072144,0.615,588.33,587.59,0.28621816]
[1743935073341,0.615,588.33,587.61,1.26919122]
[1743935073542,0.615,588.33,587.62,0.28621816]
[1743935074538,0.615,588.33,587.64,1.26919122]
[1743935074741,0.615,588.33,587.65,0.28621816]
[1743935075344,0.615,588.33,587.64,1.26919122]
[1743935075544,0.615,588.33,587.65,0.28622194]
[1743935075739,0.615,588.33,587.59,0.28622194]
[1743935075941,0.615,588.33,587.6,0.28622194]
[1743935076138,0.615,588.33,587.59,0.28622194]
[1743935076339,0.615,588.33,587.6,0.28622194]
[1743935076539,0.615,588.33,587.59,0.28622194]
[1743935077438,0.615,588.33,587.6,0.28621376]
[1743935077640,0.615,588.33,587.61,0.28621376]
[1743935077946,0.615,588.33,587.62,0.28621376]
[1743935078142,0.615,588.33,587.59,0.28621376]
[1743935078648,0.615,588.33,587.58,1.26919122]
[1743935078847,0.615,588.33,587.59,0.28621513]
[1743935081749,0.615,588.33,587.59,1.55540635]
[1743935081951,1.19317339,588.33,587.6,0.28621513]
[1743935082150,0.615,588.33,587.6,0.28621513]
[1743935082351,1.19317339,588.33,587.6,0.28621513]
[1743935082547,0.57817339,588.32,587.6,0.28621513]
[1743935082853,0.57817339,588.34,587.6,0.28621513]
[1743935083152,0.57817339,588.33,587.6,0.28621513]
[1743935083347,0.57817339,588.32,587.57,0.28621513]
[1743935083551,0.57817339,588.31,587.57,0.28621513]
[1743935083752,0.57817339,588.3,587.58,0.28622205]
[1743935083948,0.57817339,588.34,587.57,0.28622205]
[1743935084147,0.57817339,588.33,587.59,0.28622205]
[1743935084348,0.57817339,588.32,587.58,0.28622205]
[1743935084551,0.57817339,588.32,587.56,1.56505675]
[1743935084552,0.57817339,588.31,587.59,0.28622205]
[1743935084854,0.57817339,588.3,587.6,0.28622205]
[1743935085050,0.57817339,588.34,587.57,0.28622205]
[1743935085250,0.57817339,588.33,587.57,0.28622205]
[1743935085450,0.57847982,588.32,587.57,0.28622205]
[1743935085651,0.57847982,588.34,587.56,0.28622205]
[1743935085951,0.57847982,588.33,587.57,0.28622205]
[1743935086253,0.57847982,588.32,587.58,0.28622205]
[1743935086453,0.57847982,588.31,587.57,0.28622205]
[1743935086653,0.435,588.32,587.58,0.28622205]
[1743935086853,0.435,588.32,587.59,0.28622205]
[1743935087046,0.435,588.32,587.57,0.28622205]
[1743935087250,0.435,588.32,587.58,0.28622205]
[1743935087453,0.435,588.32,587.58,0.34037918]
[1743935087653,0.435,588.32,587.59,0.28622205]
[1743935087854,0.435,588.32,587.6,1.26919122]
[1743935088051,0.435,588.32,587.61,0.28622205]
[1743935090555,0.435,588.32,587.62,0.28619292]
[1743935090759,0.435,588.32,587.63,0.28619292]
[1743935090956,0.435,588.32,587.61,0.28619292]
[1743935091258,0.435,588.32,587.62,0.28619292]
[1743935091451,0.435,588.32,587.61,0.28619292]
[1743935091651,0.435,588.32,587.62,0.28619292]
[1743935091855,0.435,588.32,587.61,0.28619292]
[1743935092157,0.435,588.32,587.62,0.28618257]
[1743935092358,0.435,588.32,587.61,0.28618257]
[1743935092553,0.435,588.32,587.62,0.28618257]
[1743935092757,0.435,588.32,587.61,0.28618257]
[1743935092952,0.435,588.32,587.62,0.28618257]
[1743935093156,0.435,588.32,587.59,0.28618257]
[1743935093357,0.435,588.32,587.6,0.28618257]
[1743935093553,0.435,588.32,587.58,1.90540827]
[1743935093554,0.435,588.32,587.61,0.28618257]
[1743935093858,0.435,588.32,587.62,0.28618257]
[1743935094051,0.435,588.32,587.59,0.28618257]
[1743935097162,0.435,588.32,587.6,1.26919122]
[1743935097362,0.435,588.32,587.61,0.28618257]
[1743935101162,0.435,588.32,587.61,1.55537379]
[1743935101369,0.435,588.32,587.62,0.28618257]
[1743935103369,0.435,588.32,587.61,1.26919122]
[1743935103571,0.435,588.32,587.62,1.55536923]
[1743935103768,0.435,588.32,587.63,0.28617801]
[1743935106171,0.435,588.32,587.72,1.26919122]
[1743935106365,0.435,588.32,587.73,0.28617801]
[1743935106766,0.435,588.32,587.72,1.26919122]
[1743935108573,0.435,588.32,587.64,0.29581523]
[1743935108768,0.435,588.32,587.58,0.34037918]
[1743935108971,0.435,588.32,587.59,0.2861828]
[1743935109173,0.435,588.32,587.6,0.34036759]
[1743935110070,0.435,588.32,587.61,0.2958429]
[1743935110273,0.435,588.32,587.61,0.6362047]
[1743935111972,0.435,588.32,587.61,0.3403618]
[1743935112476,0.951,588.32,587.61,0.3403618]
[1743935113070,0.951,588.32,587.61,0.63622733]
[1743935114673,0.951,588.32,587.62,0.28618314]
[1743935116883,0.951,588.32,587.61,0.63619464]
[1743935117079,0.951,588.32,587.62,0.28618245]
[1743935118285,0.951,588.32,587.73,1.26919122]
[1743935118783,0.951,588.32,587.74,0.28618314]
[1743935119983,0.951,588.32,587.73,0.28618314]
[1743935120184,0.951,588.32,587.74,0.28618314]
[1743935120383,0.951,588.32,587.75,0.28618314]
[1743935120584,0.951,588.32,587.73,0.28618314]
[1743935120880,0.951,588.32,587.74,0.28618314]
[1743935121186,0.951,588.32,587.75,0.28618314]
[1743935121379,0.951,588.32,587.76,0.28618314]
[1743935121583,0.951,588.32,587.73,0.28618314]
[1743935121785,0.951,588.32,587.72,1.26919122]
[1743935121786,0.951,588.32,587.74,0.28618314]
[1743935121986,0.951,588.32,587.73,0.28618314]
[1743935122386,0.951,588.32,587.78,1.26919122]
[1743935122586,0.951,588.32,587.79,0.28618314]
[1743935123588,0.951,588.32,587.78,1.26919122]
[1743935123788,0.951,588.32,587.8,0.28618246]
[1743935123987,0.951,588.32,587.81,0.28618246]
[1743935124188,0.57958338,588.31,587.79,0.28618246]
[1743935124390,0.951,588.32,587.8,0.28618246]
[1743935124585,0.57958924,588.31,587.79,0.28618246]
[1743935124787,0.516,588.32,587.8,0.28618246]
[1743935125092,0.57959944,588.31,587.81,0.28618246]
[1743935125288,0.516,588.32,587.79,0.28618246]
[1743935125493,0.57969185,588.31,587.8,0.28618521]
[1743935125693,0.516,588.32,587.79,0.28618521]
[1743935125994,0.5797136,588.31,587.8,0.28618521]
[1743935126194,0.516,588.32,587.77,0.28618521]
[1743935126393,0.516,588.32,587.78,0.28618521]
[1743935126592,0.516,588.32,587.77,0.28618521]
[1743935126790,0.516,588.32,587.78,0.28618521]
[1743935127094,0.516,588.32,587.79,0.2861852]
[1743935127288,0.516,588.32,587.77,0.2861852]
[1743935127489,0.516,588.32,587.78,0.2861852]
[1743935127689,0.516,588.32,587.61,0.3403618]
[1743935127690,0.516,588.32,587.77,1.55537642]
[1743935127890,0.516,588.32,587.78,0.2861852]
[1743935128088,0.996,588.32,587.78,0.2861852]
[1743935129395,0.996,588.32,587.77,1.26919122]
[1743935129694,0.996,588.32,587.78,0.28618311]
[1743935129894,0.996,588.32,587.73,0.28618311]
[1743935130094,0.996,588.32,587.74,0.28618311]
[1743935130293,0.996,588.32,587.75,0.28618311]
[1743935130494,0.996,588.32,587.76,0.28618311]
[1743935130690,0.996,588.32,587.73,0.28618311]
[1743935130891,0.996,588.32,587.74,0.28618311]
[1743935131194,0.996,588.32,587.75,0.28618311]
[1743935131388,0.996,588.32,587.73,0.28618311]